[Event "Early-Titled-Tuesday-Blitz-April-02-2024"]
[Site "Chess.com"]
[Date "2024.04.02"]
[Round "6"]
[White "viktorskliarov"]
[Black "FlemingA"]
[Result "1/2-1/2"]
[WhiteElo "2619"]
[BlackElo "2458"]
[TimeControl "180+1"]
[EndTime "9:07:25 PDT"]
[Termination "Game drawn - insufficient material"]

1. e4 {[%clk 0:03:00.9]} 1... g6 {[%clk 0:02:51.6]} 2. d4 {[%clk 0:03:00.3]}
2... d6 {[%clk 0:02:49.8]} 3. Nc3 {[%clk 0:03:00.1]} 3... Nf6 {[%clk 0:02:49.6]}
4. f3 {[%clk 0:02:59.1]} 4... a6 {[%clk 0:02:48]} 5. Be3 {[%clk 0:02:58.5]} 5...
b5 {[%clk 0:02:48.1]} 6. Qd2 {[%clk 0:02:58.3]} 6... Nbd7 {[%clk 0:02:40.3]} 7.
a4 {[%clk 0:02:43.7]} 7... b4 {[%clk 0:02:39.7]} 8. Na2 {[%clk 0:02:43.9]} 8...
a5 {[%clk 0:02:38.1]} 9. c3 {[%clk 0:02:43.9]} 9... bxc3 {[%clk 0:02:35.9]} 10.
Nxc3 {[%clk 0:02:44.8]} 10... Bg7 {[%clk 0:02:32.4]} 11. g4 {[%clk 0:02:36.5]}
11... h5 {[%clk 0:02:31.7]} 12. g5 {[%clk 0:02:35.3]} 12... Nh7 {[%clk
0:02:32.2]} 13. Bc4 {[%clk 0:02:17.4]} 13... O-O {[%clk 0:02:31.4]} 14. f4
{[%clk 0:02:08.9]} 14... e5 {[%clk 0:02:23.4]} 15. dxe5 {[%clk 0:01:58.9]} 15...
dxe5 {[%clk 0:02:23.6]} 16. f5 {[%clk 0:01:59.1]} 16... Nb6 {[%clk 0:02:18.7]}
17. Qxd8 {[%clk 0:00:39.5]} 17... Rxd8 {[%clk 0:02:17.8]} 18. Bxb6 {[%clk
0:00:40.1]} 18... cxb6 {[%clk 0:02:17.8]} 19. fxg6 {[%clk 0:00:40.8]} 19... Nxg5
{[%clk 0:02:12.2]} 20. h4 {[%clk 0:00:41.4]} 20... Be6 {[%clk 0:01:56.4]} 21.
Be2 {[%clk 0:00:40.6]} 21... fxg6 {[%clk 0:01:46.3]} 22. hxg5 {[%clk 0:00:40.1]}
22... Rd4 {[%clk 0:01:44.3]} 23. Nf3 {[%clk 0:00:37.1]} 23... Rb4 {[%clk
0:01:44.4]} 24. O-O-O {[%clk 0:00:36.2]} 24... Rc8 {[%clk 0:01:43.7]} 25. Rd6
{[%clk 0:00:27.8]} 25... Bf7 {[%clk 0:01:27.2]} 26. Ba6 {[%clk 0:00:26.8]} 26...
Rc7 {[%clk 0:01:23.1]} 27. Rd8+ {[%clk 0:00:26.4]} 27... Kh7 {[%clk 0:01:23.6]}
28. Nd2 {[%clk 0:00:18.7]} 28... Rxa4 {[%clk 0:01:13.2]} 29. Kc2 {[%clk
0:00:15.8]} 29... Rd4 {[%clk 0:01:07.3]} 30. Rc8 {[%clk 0:00:12.8]} 30... Rxc8
{[%clk 0:00:36.9]} 31. Bxc8 {[%clk 0:00:13.7]} 31... Bf8 {[%clk 0:00:37.7]} 32.
Nf3 {[%clk 0:00:12.7]} 32... Rd8 {[%clk 0:00:30.6]} 33. Nxe5 {[%clk 0:00:12.5]}
33... Bg8 {[%clk 0:00:25]} 34. Bb7 {[%clk 0:00:10.4]} 34... Bg7 {[%clk
0:00:25.1]} 35. Nd3 {[%clk 0:00:10]} 35... b5 {[%clk 0:00:20.6]} 36. Bd5 {[%clk
0:00:07.1]} 36... b4 {[%clk 0:00:19.7]} 37. Bxg8+ {[%clk 0:00:06.9]} 37... Kxg8
{[%clk 0:00:20]} 38. Nd5 {[%clk 0:00:07.6]} 38... Rc8+ {[%clk 0:00:20.5]} 39.
Kb3 {[%clk 0:00:08]} 39... Re8 {[%clk 0:00:19.7]} 40. e5 {[%clk 0:00:07.4]}
40... Bxe5 {[%clk 0:00:17.1]} 41. Re1 {[%clk 0:00:05.9]} 41... a4+ {[%clk
0:00:17.3]} 42. Kxa4 {[%clk 0:00:04.9]} 42... Ra8+ {[%clk 0:00:17.7]} 43. Kb3
{[%clk 0:00:05.4]} 43... Bg7 {[%clk 0:00:17.7]} 44. Nf6+ {[%clk 0:00:05.2]}
44... Bxf6 {[%clk 0:00:17.4]} 45. gxf6 {[%clk 0:00:06.1]} 45... Kf7 {[%clk
0:00:18.3]} 46. Nxb4 {[%clk 0:00:05.5]} 46... Kxf6 {[%clk 0:00:18.6]} 47. Kc4
{[%clk 0:00:06]} 47... h4 {[%clk 0:00:18.3]} 48. Nd5+ {[%clk 0:00:06.1]} 48...
Kg5 {[%clk 0:00:18.7]} 49. b4 {[%clk 0:00:06.7]} 49... h3 {[%clk 0:00:17.7]} 50.
b5 {[%clk 0:00:07.1]} 50... Kh4 {[%clk 0:00:16.4]} 51. b6 {[%clk 0:00:06.4]}
51... g5 {[%clk 0:00:14.1]} 52. Kb5 {[%clk 0:00:06.5]} 52... g4 {[%clk
0:00:13.9]} 53. b7 {[%clk 0:00:06.8]} 53... Rb8 {[%clk 0:00:13.2]} 54. Kc6
{[%clk 0:00:07.2]} 54... h2 {[%clk 0:00:13.7]} 55. Ne3 {[%clk 0:00:06.6]} 55...
Kh3 {[%clk 0:00:11.8]} 56. Nxg4 {[%clk 0:00:06.5]} 56... Kxg4 {[%clk 0:00:12.7]}
57. Rh1 {[%clk 0:00:06.8]} 57... Kg3 {[%clk 0:00:12.4]} 58. Kc7 {[%clk
0:00:07.3]} 58... Rxb7+ {[%clk 0:00:12.7]} 59. Kxb7 {[%clk 0:00:07.3]} 59... Kg2
{[%clk 0:00:13.6]} 60. Rxh2+ {[%clk 0:00:07.6]} 60... Kxh2 {[%clk 0:00:14.5]}
1/2-1/2

[Event "Early-Titled-Tuesday-Blitz-April-02-2024"]
[Site "Chess.com"]
[Date "2024.04.02"]
[Round "6"]
[White "ccccvhhhj"]
[Black "GlavkonVVS"]
[Result "1-0"]
[WhiteElo "2434"]
[BlackElo "2637"]
[TimeControl "180+1"]
[EndTime "9:07:26 PDT"]
[Termination "ccccvhhhj won by resignation"]

1. e4 {[%clk 0:03:00.9]} 1... Nf6 {[%clk 0:02:57.4]} 2. e5 {[%clk 0:03:01]} 2...
Nd5 {[%clk 0:02:56.9]} 3. d4 {[%clk 0:03:01.6]} 3... d6 {[%clk 0:02:56.7]} 4.
Bc4 {[%clk 0:03:02.3]} 4... Nb6 {[%clk 0:02:52.7]} 5. Bb3 {[%clk 0:03:02.8]}
5... Nc6 {[%clk 0:02:50.4]} 6. exd6 {[%clk 0:03:02.2]} 6... cxd6 {[%clk
0:02:50]} 7. Ne2 {[%clk 0:02:54.4]} 7... a5 {[%clk 0:02:45.7]} 8. c3 {[%clk
0:02:53.1]} 8... Bf5 {[%clk 0:02:44.9]} 9. Ng3 {[%clk 0:02:51.4]} 9... Bg6
{[%clk 0:02:44.6]} 10. O-O {[%clk 0:02:51.6]} 10... e6 {[%clk 0:02:41.9]} 11.
Na3 {[%clk 0:02:29.6]} 11... Be7 {[%clk 0:02:39.8]} 12. Nb5 {[%clk 0:02:29.7]}
12... O-O {[%clk 0:02:38.8]} 13. a4 {[%clk 0:02:26.7]} 13... Rc8 {[%clk
0:02:37.4]} 14. f4 {[%clk 0:02:02]} 14... Bh4 {[%clk 0:02:19.5]} 15. f5 {[%clk
0:01:55.2]} 15... exf5 {[%clk 0:02:13.4]} 16. Nxf5 {[%clk 0:01:56.1]} 16... Bf6
{[%clk 0:01:55.1]} 17. Nfxd6 {[%clk 0:01:49.8]} 17... Rb8 {[%clk 0:01:54]} 18.
Bf4 {[%clk 0:01:39.8]} 18... Bg5 {[%clk 0:01:45.5]} 19. Bg3 {[%clk 0:01:34]}
19... Bh4 {[%clk 0:01:26.7]} 20. Qf3 {[%clk 0:01:23.6]} 20... Bxg3 {[%clk
0:01:25.9]} 21. Qxg3 {[%clk 0:01:24.5]} 21... Ne7 {[%clk 0:01:05.4]} 22. Rae1
{[%clk 0:01:09.8]} 22... Ned5 {[%clk 0:01:01.7]} 23. Nf5 {[%clk 0:00:45.9]}
23... Re8 {[%clk 0:00:48.8]} 24. Rxe8+ {[%clk 0:00:39.1]} 24... Qxe8 {[%clk
0:00:48.9]} 25. Re1 {[%clk 0:00:28.8]} 25... Qd8 {[%clk 0:00:47.7]} 26. Ne3
{[%clk 0:00:28.2]} 26... Nf6 {[%clk 0:00:41.5]} 27. Qd6 {[%clk 0:00:19]} 27...
Nbd7 {[%clk 0:00:21.5]} 28. Nd5 {[%clk 0:00:15.7]} 28... Nxd5 {[%clk 0:00:15.1]}
29. Qxd5 {[%clk 0:00:16.6]} 29... Nf6 {[%clk 0:00:14.9]} 30. Qxd8+ {[%clk
0:00:13.4]} 30... Rxd8 {[%clk 0:00:15.5]} 31. Re7 {[%clk 0:00:14]} 31... b6
{[%clk 0:00:15.2]} 32. Rb7 {[%clk 0:00:13.1]} 32... Nd7 {[%clk 0:00:11.6]} 33.
Bd5 {[%clk 0:00:10.5]} 33... Kf8 {[%clk 0:00:11.5]} 34. Bc6 {[%clk 0:00:10.9]}
34... Nb8 {[%clk 0:00:11.4]} 35. d5 {[%clk 0:00:09.5]} 35... Be4 {[%clk
0:00:10.4]} 36. Rxb6 {[%clk 0:00:09.3]} 36... Nxc6 {[%clk 0:00:08.5]} 37. dxc6
{[%clk 0:00:10.2]} 37... Rc8 {[%clk 0:00:09]} 38. Nd4 {[%clk 0:00:09.9]} 38...
Bd5 {[%clk 0:00:08.7]} 39. Rb5 {[%clk 0:00:09.3]} 39... Bxc6 {[%clk 0:00:07.7]}
40. Nxc6 {[%clk 0:00:09.7]} 40... Rxc6 {[%clk 0:00:07.8]} 41. Rxa5 {[%clk
0:00:10.6]} 41... Re6 {[%clk 0:00:08]} 42. Kf2 {[%clk 0:00:10.1]} 42... Rd6
{[%clk 0:00:08.3]} 43. Ke2 {[%clk 0:00:09.5]} 43... Re6+ {[%clk 0:00:08.5]} 44.
Kd2 {[%clk 0:00:09.8]} 44... Rd6+ {[%clk 0:00:08.8]} 45. Kc2 {[%clk 0:00:09.8]}
45... Rf6 {[%clk 0:00:09.6]} 46. Rd5 {[%clk 0:00:09.7]} 46... Rf2+ {[%clk
0:00:10.1]} 47. Rd2 {[%clk 0:00:10.4]} 47... Rf4 {[%clk 0:00:10.2]} 48. Kb3
{[%clk 0:00:10.4]} 48... f5 {[%clk 0:00:09.7]} 49. Ka3 {[%clk 0:00:11]} 49... g5
{[%clk 0:00:09.4]} 50. a5 {[%clk 0:00:11.1]} 50... Re4 {[%clk 0:00:09.4]} 51. b4
{[%clk 0:00:11.3]} 51... Re3 {[%clk 0:00:09.2]} 52. Kb3 {[%clk 0:00:11.4]} 52...
f4 {[%clk 0:00:09.6]} 53. a6 {[%clk 0:00:11.5]} 53... Re6 {[%clk 0:00:09.6]} 54.
b5 {[%clk 0:00:11.7]} 54... g4 {[%clk 0:00:09.2]} 55. Kb4 {[%clk 0:00:11.8]}
55... f3 {[%clk 0:00:09.3]} 56. gxf3 {[%clk 0:00:12.5]} 56... gxf3 {[%clk
0:00:09.8]} 57. Rf2 {[%clk 0:00:12.8]} 57... Re4+ {[%clk 0:00:10]} 58. c4 {[%clk
0:00:12.9]} 58... Re3 {[%clk 0:00:09.6]} 59. a7 {[%clk 0:00:13]} 1-0

[Event "Early-Titled-Tuesday-Blitz-April-02-2024"]
[Site "Chess.com"]
[Date "2024.04.02"]
[Round "6"]
[White "ploxoi"]
[Black "sonicdravise"]
[Result "1-0"]
[WhiteElo "2463"]
[BlackElo "2606"]
[TimeControl "180+1"]
[EndTime "9:07:28 PDT"]
[Termination "ploxoi won by checkmate"]

1. d4 {[%clk 0:03:00.9]} 1... Nf6 {[%clk 0:02:59.5]} 2. c4 {[%clk 0:03:01.1]}
2... e6 {[%clk 0:02:58.4]} 3. g3 {[%clk 0:03:01.5]} 3... c5 {[%clk 0:02:58.7]}
4. d5 {[%clk 0:03:01.4]} 4... exd5 {[%clk 0:02:59.2]} 5. cxd5 {[%clk 0:03:02.3]}
5... d6 {[%clk 0:03:00.1]} 6. Nc3 {[%clk 0:03:03]} 6... g6 {[%clk 0:03:00.9]} 7.
Bg2 {[%clk 0:03:03.6]} 7... Bg7 {[%clk 0:03:01.6]} 8. Nf3 {[%clk 0:03:04.4]}
8... O-O {[%clk 0:03:02.4]} 9. O-O {[%clk 0:03:05.1]} 9... a6 {[%clk 0:03:03.1]}
10. a4 {[%clk 0:03:04.8]} 10... Nbd7 {[%clk 0:03:03.6]} 11. h3 {[%clk
0:03:04.8]} 11... Re8 {[%clk 0:03:02.1]} 12. Nd2 {[%clk 0:03:05.2]} 12... Rb8
{[%clk 0:02:59]} 13. Nc4 {[%clk 0:03:05]} 13... Ne5 {[%clk 0:02:56.5]} 14. Na3
{[%clk 0:03:04.8]} 14... Nh5 {[%clk 0:02:56.1]} 15. e4 {[%clk 0:03:03.9]} 15...
Bd7 {[%clk 0:02:39.9]} 16. a5 {[%clk 0:02:48.9]} 16... b5 {[%clk 0:02:31.8]} 17.
axb6 {[%clk 0:02:49.8]} 17... Bb5 {[%clk 0:02:22.7]} 18. Naxb5 {[%clk 0:02:49]}
18... axb5 {[%clk 0:02:22.8]} 19. Nxb5 {[%clk 0:02:49.9]} 19... Qxb6 {[%clk
0:02:20.2]} 20. Na3 {[%clk 0:02:49.5]} 20... Qb3 {[%clk 0:02:03.9]} 21. Qxb3
{[%clk 0:02:07.4]} 21... Rxb3 {[%clk 0:02:04.8]} 22. g4 {[%clk 0:02:07.5]} 22...
Nf6 {[%clk 0:01:59.5]} 23. Bd2 {[%clk 0:02:08]} 23... Nf3+ {[%clk 0:01:49.2]}
24. Bxf3 {[%clk 0:02:06.8]} 24... Rxf3 {[%clk 0:01:50]} 25. Kg2 {[%clk 0:02:07]}
25... Rd3 {[%clk 0:01:43.5]} 26. Nc4 {[%clk 0:01:56.4]} 26... Rxe4 {[%clk
0:01:24]} 27. Ra8+ {[%clk 0:01:53.4]} 27... Re8 {[%clk 0:01:21.7]} 28. Rxe8+
{[%clk 0:01:48.5]} 28... Nxe8 {[%clk 0:01:21.6]} 29. Ra1 {[%clk 0:01:33.8]}
29... Nc7 {[%clk 0:01:07]} 30. Ra7 {[%clk 0:01:28.1]} 30... Ne8 {[%clk
0:00:46.9]} 31. Ra8 {[%clk 0:01:25.6]} 31... Kf8 {[%clk 0:00:36.1]} 32. Nxd6
{[%clk 0:01:25.6]} 32... Ke7 {[%clk 0:00:35.1]} 33. Nxe8 {[%clk 0:01:25.9]}
33... Rxd2 {[%clk 0:00:32.4]} 34. Nxg7 {[%clk 0:01:11.5]} 34... Rxd5 {[%clk
0:00:32.8]} 35. h4 {[%clk 0:01:07.9]} 35... Rd2 {[%clk 0:00:25.9]} 36. Rb8
{[%clk 0:01:08]} 36... c4 {[%clk 0:00:15.4]} 37. g5 {[%clk 0:01:08.1]} 37... Rd4
{[%clk 0:00:14.8]} 38. Kg3 {[%clk 0:01:08]} 38... Rd3+ {[%clk 0:00:15.3]} 39. f3
{[%clk 0:01:08.3]} 39... Rd1 {[%clk 0:00:14.5]} 40. Ne8 {[%clk 0:01:07.8]} 40...
Rg1+ {[%clk 0:00:13.1]} 41. Kh2 {[%clk 0:01:08.2]} 41... Rb1 {[%clk 0:00:13.9]}
42. Nf6 {[%clk 0:01:07.4]} 42... h5 {[%clk 0:00:10.9]} 43. Rb4 {[%clk 0:01:02]}
43... Rc1 {[%clk 0:00:07.8]} 44. Rb7+ {[%clk 0:00:59.3]} 44... Ke6 {[%clk
0:00:08.2]} 45. Rb6+ {[%clk 0:00:58.4]} 45... Kf5 {[%clk 0:00:08.4]} 46. Kg3
{[%clk 0:00:52.1]} 46... Rg1+ {[%clk 0:00:08.3]} 47. Kf2 {[%clk 0:00:52.5]}
47... Rh1 {[%clk 0:00:08.4]} 48. Rb5+ {[%clk 0:00:52.7]} 48... Ke6 {[%clk
0:00:08.3]} 49. Kg3 {[%clk 0:00:48.2]} 49... Rg1+ {[%clk 0:00:08.4]} 50. Kh2
{[%clk 0:00:48.5]} 50... Rf1 {[%clk 0:00:08.1]} 51. Kg2 {[%clk 0:00:47.7]} 51...
Rb1 {[%clk 0:00:07.7]} 52. Ne4 {[%clk 0:00:48.3]} 52... Rc1 {[%clk 0:00:06.4]}
53. Rc5 {[%clk 0:00:43.1]} 53... Rc2+ {[%clk 0:00:06.4]} 54. Kg3 {[%clk
0:00:43.7]} 54... Rc1 {[%clk 0:00:05]} 55. b3 {[%clk 0:00:43.2]} 55... Rg1+
{[%clk 0:00:04.3]} 56. Kh2 {[%clk 0:00:43.5]} 56... Rf1 {[%clk 0:00:03.9]} 57.
Kg2 {[%clk 0:00:43.9]} 57... Rb1 {[%clk 0:00:02.4]} 58. bxc4 {[%clk 0:00:43.4]}
58... Rb2+ {[%clk 0:00:02.7]} 59. Kg3 {[%clk 0:00:43.9]} 59... Ke7 {[%clk
0:00:03.4]} 60. Rb5 {[%clk 0:00:42.4]} 60... Kf8 {[%clk 0:00:03.9]} 61. Rxb2
{[%clk 0:00:42]} 61... Kg7 {[%clk 0:00:04.1]} 62. Rb8 {[%clk 0:00:40.4]} 62...
Kh7 {[%clk 0:00:03.4]} 63. Nf6+ {[%clk 0:00:40.9]} 63... Kg7 {[%clk 0:00:04.3]}
64. Rg8# {[%clk 0:00:41.5]} 1-0

[Event "Early-Titled-Tuesday-Blitz-April-02-2024"]
[Site "Chess.com"]
[Date "2024.04.02"]
[Round "6"]
[White "Yushko_Olga"]
[Black "Aureliano-Buendia"]
[Result "0-1"]
[WhiteElo "2245"]
[BlackElo "2481"]
[TimeControl "180+1"]
[EndTime "9:07:30 PDT"]
[Termination "Aureliano-Buendia won on time"]

1. d4 {[%clk 0:02:59.6]} 1... d6 {[%clk 0:02:59.7]} 2. c4 {[%clk 0:03:00.1]}
2... Nf6 {[%clk 0:02:59.7]} 3. Nf3 {[%clk 0:03:00]} 3... Nbd7 {[%clk 0:02:58.4]}
4. Nc3 {[%clk 0:02:59.6]} 4... e5 {[%clk 0:02:58.3]} 5. Bg5 {[%clk 0:02:59.9]}
5... Be7 {[%clk 0:02:57.9]} 6. e3 {[%clk 0:02:59.6]} 6... h6 {[%clk 0:02:53.5]}
7. Bh4 {[%clk 0:02:59.4]} 7... O-O {[%clk 0:02:53.4]} 8. Bd3 {[%clk 0:02:58.7]}
8... Re8 {[%clk 0:02:51.2]} 9. Bc2 {[%clk 0:02:38.4]} 9... exd4 {[%clk
0:02:45.2]} 10. Nxd4 {[%clk 0:02:37.4]} 10... a5 {[%clk 0:02:37.1]} 11. O-O
{[%clk 0:02:36.1]} 11... Ne5 {[%clk 0:02:34.8]} 12. b3 {[%clk 0:02:28.7]} 12...
b6 {[%clk 0:02:33.4]} 13. Bg3 {[%clk 0:02:20.8]} 13... Bb7 {[%clk 0:02:31.5]}
14. Nf5 {[%clk 0:02:20.6]} 14... Bf8 {[%clk 0:02:30.5]} 15. Qd2 {[%clk
0:02:15.9]} 15... Qd7 {[%clk 0:02:29]} 16. Rfd1 {[%clk 0:02:08.1]} 16... g6
{[%clk 0:02:28.3]} 17. Nd4 {[%clk 0:02:00.1]} 17... Bg7 {[%clk 0:02:28.3]} 18.
Rac1 {[%clk 0:01:52.8]} 18... Nh5 {[%clk 0:02:18.1]} 19. Nce2 {[%clk 0:01:49.3]}
19... Nxg3 {[%clk 0:02:17.4]} 20. Nxg3 {[%clk 0:01:48.8]} 20... Qg4 {[%clk
0:02:16.2]} 21. h3 {[%clk 0:01:41.5]} 21... Qh4 {[%clk 0:02:15.4]} 22. Qe2
{[%clk 0:00:54]} 22... h5 {[%clk 0:01:57.6]} 23. e4 {[%clk 0:00:45.2]} 23... Bh6
{[%clk 0:01:53.9]} 24. Ra1 {[%clk 0:00:42.8]} 24... Qf4 {[%clk 0:01:49.8]} 25.
Nf3 {[%clk 0:00:36.3]} 25... Nxf3+ {[%clk 0:01:48.2]} 26. Qxf3 {[%clk
0:00:37.2]} 26... Qxf3 {[%clk 0:01:47]} 27. gxf3 {[%clk 0:00:38.1]} 27... Bc8
{[%clk 0:01:45.6]} 28. Kg2 {[%clk 0:00:37.3]} 28... h4 {[%clk 0:01:42.6]} 29.
Nf1 {[%clk 0:00:37.1]} 29... Bf4 {[%clk 0:01:35.4]} 30. Ne3 {[%clk 0:00:36.8]}
30... Re5 {[%clk 0:01:33.5]} 31. Rd5 {[%clk 0:00:36.6]} 31... Be6 {[%clk
0:01:31.2]} 32. Rxe5 {[%clk 0:00:36.7]} 32... Bxe5 {[%clk 0:01:32.1]} 33. Rd1
{[%clk 0:00:35.4]} 33... Kg7 {[%clk 0:01:31.3]} 34. Nd5 {[%clk 0:00:35.4]} 34...
Bxd5 {[%clk 0:01:29.1]} 35. Rxd5 {[%clk 0:00:35]} 35... Rh8 {[%clk 0:01:27.4]}
36. a3 {[%clk 0:00:31.6]} 36... Kf6 {[%clk 0:01:22.8]} 37. b4 {[%clk 0:00:31.1]}
37... axb4 {[%clk 0:01:22.4]} 38. axb4 {[%clk 0:00:32]} 38... Ra8 {[%clk
0:01:21.1]} 39. c5 {[%clk 0:00:29.3]} 39... Ra2 {[%clk 0:01:12.9]} 40. Bb3
{[%clk 0:00:29.1]} 40... Rb2 {[%clk 0:01:12.6]} 41. Rd3 {[%clk 0:00:28.1]} 41...
bxc5 {[%clk 0:01:11.8]} 42. bxc5 {[%clk 0:00:29]} 42... dxc5 {[%clk 0:01:10.3]}
43. Bc4 {[%clk 0:00:28.2]} 43... Bd4 {[%clk 0:01:07.7]} 44. Rb3 {[%clk
0:00:27.3]} 44... Rxf2+ {[%clk 0:01:04.6]} 45. Kh1 {[%clk 0:00:27]} 45... Kg5
{[%clk 0:01:03.1]} 46. e5 {[%clk 0:00:24.9]} 46... Bxe5 {[%clk 0:00:59.5]} 47.
Bxf7 {[%clk 0:00:22.5]} 47... Kf4 {[%clk 0:00:52.6]} 48. Kg1 {[%clk 0:00:18.8]}
48... Bd4 {[%clk 0:00:51.6]} 49. Kh1 {[%clk 0:00:16.3]} 49... g5 {[%clk
0:00:51.9]} 50. Be6 {[%clk 0:00:16]} 50... Kg3 {[%clk 0:00:50.5]} 51. f4+ {[%clk
0:00:16.1]} 51... Kxf4 {[%clk 0:00:50.3]} 52. Bg4 {[%clk 0:00:15.2]} 52... c4
{[%clk 0:00:47.6]} 53. Ra3 {[%clk 0:00:14.2]} 53... c3 {[%clk 0:00:46.7]} 54.
Ra4 {[%clk 0:00:14.5]} 54... c5 {[%clk 0:00:46.9]} 55. Ra1 {[%clk 0:00:12.4]}
55... c2 {[%clk 0:00:42.7]} 56. Re1 {[%clk 0:00:11.8]} 56... Be3 {[%clk
0:00:42.3]} 57. Be2 {[%clk 0:00:04.3]} 57... c1=Q {[%clk 0:00:37.1]} 58. Bd1
{[%clk 0:00:03.8]} 58... Qd2 {[%clk 0:00:35.1]} 0-1

[Event "Early-Titled-Tuesday-Blitz-April-02-2024"]
[Site "Chess.com"]
[Date "2024.04.02"]
[Round "6"]
[White "Robert_Chessmood"]
[Black "moro182"]
[Result "1/2-1/2"]
[WhiteElo "2974"]
[BlackElo "2901"]
[TimeControl "180+1"]
[EndTime "9:07:31 PDT"]
[Termination "Game drawn by repetition"]

1. e4 {[%clk 0:03:00.9]} 1... g6 {[%clk 0:03:00.9]} 2. d4 {[%clk 0:03:00]} 2...
Bg7 {[%clk 0:03:01.5]} 3. Nf3 {[%clk 0:03:00.2]} 3... d6 {[%clk 0:03:01.5]} 4.
Be3 {[%clk 0:02:55.9]} 4... Nf6 {[%clk 0:03:01.1]} 5. Nc3 {[%clk 0:02:56.2]}
5... O-O {[%clk 0:02:59]} 6. Qd2 {[%clk 0:02:56.5]} 6... d5 {[%clk 0:02:59.6]}
7. e5 {[%clk 0:02:42.9]} 7... Ne4 {[%clk 0:02:59.3]} 8. Nxe4 {[%clk 0:02:43.3]}
8... dxe4 {[%clk 0:03:00.2]} 9. Ng5 {[%clk 0:02:43.9]} 9... c5 {[%clk
0:03:00.1]} 10. dxc5 {[%clk 0:02:31.6]} 10... Qxd2+ {[%clk 0:02:26.5]} 11. Bxd2
{[%clk 0:02:31.6]} 11... Bf5 {[%clk 0:02:26]} 12. Bc3 {[%clk 0:02:12.5]} 12...
h6 {[%clk 0:02:18.4]} 13. Nh3 {[%clk 0:02:12.4]} 13... Nd7 {[%clk 0:02:15.5]}
14. Nf4 {[%clk 0:02:09.3]} 14... Nxe5 {[%clk 0:02:07]} 15. Nd5 {[%clk
0:02:06.9]} 15... Nc6 {[%clk 0:02:00.5]} 16. O-O-O {[%clk 0:01:53.2]} 16... Rfd8
{[%clk 0:01:46.2]} 17. Bb5 {[%clk 0:01:39.6]} 17... Bxc3 {[%clk 0:01:35.8]} 18.
Bxc6 {[%clk 0:01:33.4]} 18... bxc6 {[%clk 0:01:36.7]} 19. Nxe7+ {[%clk
0:01:33.1]} 19... Kf8 {[%clk 0:01:36.5]} 20. Nxf5 {[%clk 0:01:28.4]} 20... Bxb2+
{[%clk 0:01:05.6]} 21. Kxb2 {[%clk 0:01:29.3]} 21... gxf5 {[%clk 0:01:06.1]} 22.
Kc3 {[%clk 0:01:29.4]} 22... Ke7 {[%clk 0:01:06.2]} 23. Kc4 {[%clk 0:01:25.9]}
23... Ke6 {[%clk 0:01:05.2]} 24. f4 {[%clk 0:01:14.2]} 24... Rab8 {[%clk
0:00:42.1]} 25. c3 {[%clk 0:01:05]} 25... Rd5 {[%clk 0:00:37.6]} 26. Rb1 {[%clk
0:00:51.9]} 26... Rxb1 {[%clk 0:00:25.9]} 27. Rxb1 {[%clk 0:00:51.4]} 27... Rd2
{[%clk 0:00:26.8]} 28. Rb8 {[%clk 0:00:37]} 28... Rxa2 {[%clk 0:00:22.3]} 29.
Rd8 {[%clk 0:00:35.2]} 29... Ke7 {[%clk 0:00:22]} 30. Rd6 {[%clk 0:00:32.3]}
30... e3 {[%clk 0:00:21.7]} 31. Rd3 {[%clk 0:00:25.3]} 31... e2 {[%clk
0:00:21.3]} 32. Re3+ {[%clk 0:00:25.5]} 32... Kf6 {[%clk 0:00:14.2]} 33. Kd3
{[%clk 0:00:18.8]} 33... a5 {[%clk 0:00:12.5]} 34. Rxe2 {[%clk 0:00:15.3]} 34...
Rxe2 {[%clk 0:00:10.4]} 35. Kxe2 {[%clk 0:00:16.2]} 35... Ke6 {[%clk 0:00:09.9]}
36. c4 {[%clk 0:00:16.2]} 36... Kd7 {[%clk 0:00:05.7]} 37. Kd3 {[%clk 0:00:16]}
37... Kc7 {[%clk 0:00:06.3]} 38. Kc3 {[%clk 0:00:16.4]} 38... Kb7 {[%clk
0:00:06.3]} 39. Kb3 {[%clk 0:00:16.7]} 39... Ka7 {[%clk 0:00:06]} 40. Ka3 {[%clk
0:00:15.4]} 40... Kb7 {[%clk 0:00:06]} 41. Ka4 {[%clk 0:00:12.1]} 41... Ka6
{[%clk 0:00:06.2]} 42. Kb3 {[%clk 0:00:12.1]} 42... Kb7 {[%clk 0:00:06.3]} 43.
g3 {[%clk 0:00:11]} 43... h5 {[%clk 0:00:05.1]} 44. Ka3 {[%clk 0:00:09.3]} 44...
Ka7 {[%clk 0:00:04.8]} 45. Ka4 {[%clk 0:00:07.4]} 45... Ka6 {[%clk 0:00:05.2]}
46. h3 {[%clk 0:00:07.5]} 46... f6 {[%clk 0:00:05.3]} 47. Kb3 {[%clk 0:00:07.4]}
47... Kb7 {[%clk 0:00:05.1]} 48. Ka3 {[%clk 0:00:06.9]} 48... Ka7 {[%clk
0:00:05.4]} 49. Ka4 {[%clk 0:00:05.4]} 49... Ka6 {[%clk 0:00:05.8]} 50. h4
{[%clk 0:00:05.3]} 50... Kb7 {[%clk 0:00:06.4]} 51. Kxa5 {[%clk 0:00:06]} 51...
Ka7 {[%clk 0:00:07]} 52. Kb4 {[%clk 0:00:06.5]} 52... Ka6 {[%clk 0:00:07.9]} 53.
Ka4 {[%clk 0:00:07.1]} 53... Kb7 {[%clk 0:00:08.3]} 54. Kb4 {[%clk 0:00:06.2]}
54... Ka6 {[%clk 0:00:09.2]} 55. Ka4 {[%clk 0:00:06.6]} 55... Kb7 {[%clk
0:00:09.6]} 56. Ka5 {[%clk 0:00:06.5]} 56... Ka7 {[%clk 0:00:10]} 57. Kb4 {[%clk
0:00:06.8]} 57... Ka6 {[%clk 0:00:10.9]} 1/2-1/2